[Event "Early-Titled-Tuesday-Blitz-May-14-2024"]
[Site "Chess.com"]
[Date "2024.05.14"]
[Round "9"]
[White "average_trans"]
[Black "hongnhung1234"]
[Result "1-0"]
[WhiteElo "2377"]
[BlackElo "2549"]
[TimeControl "180+1"]
[EndTime "9:46:11 PDT"]
[Termination "average_trans won by checkmate"]

1. c3 {[%clk 0:03:00.9]} 1... f5 {[%clk 0:02:58.9]} 2. d4 {[%clk 0:02:59.2]}
2... Nf6 {[%clk 0:02:59.2]} 3. Bg5 {[%clk 0:02:57.4]} 3... e6 {[%clk 0:02:56.5]}
4. Nd2 {[%clk 0:02:56.4]} 4... Be7 {[%clk 0:02:55.9]} 5. Bxf6 {[%clk 0:02:52]}
5... Bxf6 {[%clk 0:02:56.6]} 6. e4 {[%clk 0:02:52.7]} 6... O-O {[%clk
0:02:45.1]} 7. e5 {[%clk 0:02:51.4]} 7... Be7 {[%clk 0:02:42.3]} 8. f4 {[%clk
0:02:49.7]} 8... c5 {[%clk 0:02:37.7]} 9. Ngf3 {[%clk 0:02:48.8]} 9... d6 {[%clk
0:02:30.7]} 10. dxc5 {[%clk 0:02:40.3]} 10... dxe5 {[%clk 0:02:27.1]} 11. Nxe5
{[%clk 0:02:28.1]} 11... Bxc5 {[%clk 0:02:26.3]} 12. Ndf3 {[%clk 0:02:25.5]}
12... Qb6 {[%clk 0:02:21.6]} 13. Nd3 {[%clk 0:02:20.8]} 13... Be3 {[%clk
0:02:13.8]} 14. Qb3 {[%clk 0:02:17.5]} 14... Qd6 {[%clk 0:02:05]} 15. g3 {[%clk
0:02:14.8]} 15... b6 {[%clk 0:02:00.1]} 16. Rd1 {[%clk 0:02:12.7]} 16... Bb7
{[%clk 0:01:57.1]} 17. Nde5 {[%clk 0:02:12.8]} 17... Qe7 {[%clk 0:01:46.4]} 18.
Bc4 {[%clk 0:02:11.8]} 18... Re8 {[%clk 0:01:39]} 19. Ke2 {[%clk 0:02:09.4]}
19... Bc5 {[%clk 0:01:38.2]} 20. Ng5 {[%clk 0:02:01.6]} 20... Ba6 {[%clk
0:01:02.8]} 21. Bxa6 {[%clk 0:01:54.8]} 21... Nxa6 {[%clk 0:01:03.7]} 22. Rd7
{[%clk 0:01:53.5]} 22... Qf6 {[%clk 0:00:58.8]} 23. Rhd1 {[%clk 0:01:39.4]}
23... Qh6 {[%clk 0:00:47.2]} 24. h4 {[%clk 0:01:31.1]} 24... Nb8 {[%clk
0:00:39.8]} 25. Rd8 {[%clk 0:01:19.6]} 25... Na6 {[%clk 0:00:39.5]} 26. Rxa8
{[%clk 0:01:18.9]} 26... Rxa8 {[%clk 0:00:40.4]} 27. Nxe6 {[%clk 0:01:19.1]}
27... Qh5+ {[%clk 0:00:35.8]} 28. g4 {[%clk 0:01:04.7]} 28... fxg4 {[%clk
0:00:25.2]} 29. Ng5+ {[%clk 0:00:58.2]} 29... Kf8 {[%clk 0:00:22.6]} 30. Nxh7+
{[%clk 0:00:52.6]} 30... Ke7 {[%clk 0:00:20.4]} 31. Rd7+ {[%clk 0:00:51.9]}
31... Ke8 {[%clk 0:00:20.7]} 32. Qg8+ {[%clk 0:00:51.7]} 32... Bf8 {[%clk
0:00:20.7]} 33. Qxf8# {[%clk 0:00:52.3]} 1-0

[Event "Early-Titled-Tuesday-Blitz-May-14-2024"]
[Site "Chess.com"]
[Date "2024.05.14"]
[Round "9"]
[White "ravengelic"]
[Black "DonkyDonkyDonkey"]
[Result "0-1"]
[WhiteElo "2717"]
[BlackElo "2925"]
[TimeControl "180+1"]
[EndTime "9:46:12 PDT"]
[Termination "DonkyDonkyDonkey won by resignation"]

1. d4 {[%clk 0:03:00.9]} 1... Nf6 {[%clk 0:03:00]} 2. Bf4 {[%clk 0:03:00.7]}
2... g6 {[%clk 0:02:59.8]} 3. e3 {[%clk 0:03:00.9]} 3... Bg7 {[%clk 0:03:00]} 4.
Nf3 {[%clk 0:03:01.1]} 4... O-O {[%clk 0:03:00.4]} 5. Bc4 {[%clk 0:03:00.7]}
5... d6 {[%clk 0:02:56.1]} 6. O-O {[%clk 0:02:59.6]} 6... Nbd7 {[%clk
0:02:53.1]} 7. h3 {[%clk 0:02:59.5]} 7... c5 {[%clk 0:02:51.1]} 8. c3 {[%clk
0:02:59.3]} 8... Nb6 {[%clk 0:02:49]} 9. Be2 {[%clk 0:02:56.8]} 9... Bf5 {[%clk
0:02:46]} 10. Nbd2 {[%clk 0:02:57]} 10... Rc8 {[%clk 0:02:43.8]} 11. a4 {[%clk
0:02:56.7]} 11... cxd4 {[%clk 0:02:39.7]} 12. exd4 {[%clk 0:02:56]} 12... Ne4
{[%clk 0:02:36.6]} 13. a5 {[%clk 0:02:51.2]} 13... Nxd2 {[%clk 0:02:34.6]} 14.
Nxd2 {[%clk 0:02:47.7]} 14... Nd5 {[%clk 0:02:32.7]} 15. Bg3 {[%clk 0:02:46.2]}
15... e5 {[%clk 0:02:19.3]} 16. Bf3 {[%clk 0:02:38.9]} 16... Be6 {[%clk
0:02:19.3]} 17. c4 {[%clk 0:02:28.1]} 17... Nb4 {[%clk 0:02:13.5]} 18. Bxb7
{[%clk 0:02:22.9]} 18... Rb8 {[%clk 0:02:12.7]} 19. d5 {[%clk 0:02:16.5]} 19...
Bxh3 {[%clk 0:01:58.9]} 20. a6 {[%clk 0:02:14.8]} 20... Bf5 {[%clk 0:01:58.4]}
21. Qa4 {[%clk 0:02:02.3]} 21... Nc2 {[%clk 0:01:56]} 22. Rac1 {[%clk 0:01:55]}
22... Nd4 {[%clk 0:01:56]} 23. Rfe1 {[%clk 0:01:53.7]} 23... Bh6 {[%clk
0:01:52]} 24. Qd1 {[%clk 0:01:48.7]} 24... Qg5 {[%clk 0:01:46.2]} 25. Nf3 {[%clk
0:01:36.4]} 25... Qxc1 {[%clk 0:01:45.6]} 26. Nxd4 {[%clk 0:01:31.3]} 26... Qxd1
{[%clk 0:01:21.4]} 27. Rxd1 {[%clk 0:01:32.2]} 27... Bg4 {[%clk 0:01:22]} 28. f3
{[%clk 0:01:21.4]} 28... Be3+ {[%clk 0:01:07.3]} 29. Kh2 {[%clk 0:01:13.4]}
29... Bxd4 {[%clk 0:01:07.4]} 30. fxg4 {[%clk 0:01:13.5]} 30... Bxb2 {[%clk
0:00:55.8]} 31. Bf2 {[%clk 0:01:12.9]} 31... Bd4 {[%clk 0:00:56.1]} 32. Rxd4
{[%clk 0:01:05.7]} 32... exd4 {[%clk 0:00:57]} 33. Bxd4 {[%clk 0:01:06.3]} 33...
Rxb7 {[%clk 0:00:51.4]} 34. axb7 {[%clk 0:01:07.2]} 34... Rb8 {[%clk 0:00:52]}
35. Bxa7 {[%clk 0:01:03.8]} 35... Rxb7 {[%clk 0:00:52.4]} 36. Bf2 {[%clk
0:01:01.7]} 36... Rc7 {[%clk 0:00:51.8]} 37. c5 {[%clk 0:00:51.8]} 37... Rxc5
{[%clk 0:00:34.1]} 38. Bxc5 {[%clk 0:00:41.2]} 38... dxc5 {[%clk 0:00:35]} 39.
d6 {[%clk 0:00:41.9]} 39... Kf8 {[%clk 0:00:35]} 0-1

[Event "Early-Titled-Tuesday-Blitz-May-14-2024"]
[Site "Chess.com"]
[Date "2024.05.14"]
[Round "9"]
[White "hakanazeri2"]
[Black "Szparu"]
[Result "0-1"]
[WhiteElo "2594"]
[BlackElo "2860"]
[TimeControl "180+1"]
[EndTime "9:46:15 PDT"]
[Termination "Szparu won by resignation"]

1. Nf3 {[%clk 0:02:58]} 1... d5 {[%clk 0:02:59.6]} 2. d4 {[%clk 0:02:49.2]} 2...
Nf6 {[%clk 0:02:58.9]} 3. c4 {[%clk 0:02:49]} 3... c6 {[%clk 0:02:57.5]} 4. Nc3
{[%clk 0:02:49.3]} 4... dxc4 {[%clk 0:02:57.3]} 5. a4 {[%clk 0:02:48.1]} 5...
Bf5 {[%clk 0:02:57.5]} 6. Ne5 {[%clk 0:02:48.5]} 6... Nbd7 {[%clk 0:02:56.8]} 7.
Nxc4 {[%clk 0:02:47.9]} 7... Qc7 {[%clk 0:02:57.2]} 8. g3 {[%clk 0:02:48.6]}
8... e5 {[%clk 0:02:57.2]} 9. dxe5 {[%clk 0:02:49.5]} 9... Nxe5 {[%clk
0:02:57.9]} 10. Bf4 {[%clk 0:02:50.2]} 10... Nfd7 {[%clk 0:02:58.1]} 11. Bg2
{[%clk 0:02:50.4]} 11... g5 {[%clk 0:02:57.3]} 12. Ne3 {[%clk 0:02:50.9]} 12...
gxf4 {[%clk 0:02:57.2]} 13. Nxf5 {[%clk 0:02:51.3]} 13... O-O-O {[%clk
0:02:57.7]} 14. Qc2 {[%clk 0:02:50.6]} 14... fxg3 {[%clk 0:02:53.2]} 15. hxg3
{[%clk 0:02:50.6]} 15... Kb8 {[%clk 0:02:52.9]} 16. O-O {[%clk 0:02:50.9]} 16...
a5 {[%clk 0:02:52.5]} 17. Rad1 {[%clk 0:02:47.8]} 17... Nc5 {[%clk 0:02:51.4]}
18. Rxd8+ {[%clk 0:02:47.1]} 18... Qxd8 {[%clk 0:02:52.3]} 19. Rb1 {[%clk
0:02:47.3]} 19... Ne6 {[%clk 0:02:49.2]} 20. Qe4 {[%clk 0:02:31.8]} 20... Qc7
{[%clk 0:02:40.8]} 21. Rc1 {[%clk 0:02:25.2]} 21... Bc5 {[%clk 0:02:40.6]} 22.
e3 {[%clk 0:02:24.6]} 22... h5 {[%clk 0:02:40.2]} 23. b4 {[%clk 0:02:21.2]}
23... axb4 {[%clk 0:02:38.1]} 24. Na2 {[%clk 0:02:20.7]} 24... b3 {[%clk
0:02:37.4]} 25. Nc3 {[%clk 0:02:21.1]} 25... Ng5 {[%clk 0:02:25.7]} 26. Qf4
{[%clk 0:01:59.4]} 26... f6 {[%clk 0:02:17.7]} 27. Rb1 {[%clk 0:01:50.2]} 27...
Nef3+ {[%clk 0:02:06.3]} 28. Kh1 {[%clk 0:01:50.4]} 28... Nd2 {[%clk 0:02:06]}
29. Rb2 {[%clk 0:01:46.4]} 29... Rd8 {[%clk 0:01:58.6]} 30. Nd4 {[%clk 0:01:37]}
30... Bxd4 {[%clk 0:01:40.2]} 31. exd4 {[%clk 0:01:36.4]} 31... Qxf4 {[%clk
0:01:38.3]} 32. gxf4 {[%clk 0:01:35.1]} 32... Ngf3 {[%clk 0:01:39]} 33. d5
{[%clk 0:01:21.2]} 33... h4 {[%clk 0:01:36]} 34. dxc6 {[%clk 0:01:07.8]} 34...
Rg8 {[%clk 0:01:30.5]} 35. Ne4 {[%clk 0:00:43.5]} 35... h3 {[%clk 0:01:20.8]}
36. Bxf3 {[%clk 0:00:41.5]} 36... Nxf3 {[%clk 0:01:21.4]} 37. Ng3 {[%clk
0:00:41.3]} 37... Rd8 {[%clk 0:01:17.2]} 38. Rb1 {[%clk 0:00:40.3]} 38... Rd2
{[%clk 0:01:03]} 39. Rf1 {[%clk 0:00:27.8]} 39... b2 {[%clk 0:01:00]} 40. Ne4
{[%clk 0:00:21.3]} 40... Rc2 {[%clk 0:01:00.1]} 41. c7+ {[%clk 0:00:20.8]} 41...
Kxc7 {[%clk 0:00:56.1]} 0-1

[Event "Early-Titled-Tuesday-Blitz-May-14-2024"]
[Site "Chess.com"]
[Date "2024.05.14"]
[Round "9"]
[White "GothamChess"]
[Black "Vesper2018"]
[Result "1-0"]
[WhiteElo "2733"]
[BlackElo "2561"]
[TimeControl "180+1"]
[EndTime "9:46:16 PDT"]
[Termination "GothamChess won by resignation"]

1. e4 {[%clk 0:03:00.9]} 1... c5 {[%clk 0:02:59.7]} 2. Nc3 {[%clk 0:03:00.6]}
2... d6 {[%clk 0:02:59.6]} 3. d4 {[%clk 0:03:00.9]} 3... cxd4 {[%clk 0:02:59.1]}
4. Qxd4 {[%clk 0:03:01.8]} 4... Nc6 {[%clk 0:02:59.2]} 5. Qd2 {[%clk 0:03:01.3]}
5... g6 {[%clk 0:02:58.4]} 6. b3 {[%clk 0:03:00.2]} 6... Bh6 {[%clk 0:02:49.5]}
7. f4 {[%clk 0:02:59.5]} 7... Nf6 {[%clk 0:02:48.9]} 8. Bb2 {[%clk 0:02:59.4]}
8... e5 {[%clk 0:02:40.9]} 9. g3 {[%clk 0:02:58.6]} 9... O-O {[%clk 0:02:36.1]}
10. O-O-O {[%clk 0:02:58.3]} 10... Bg4 {[%clk 0:02:27.7]} 11. Be2 {[%clk
0:02:58.4]} 11... Nd4 {[%clk 0:02:24.2]} 12. Bxg4 {[%clk 0:02:46.9]} 12... Nxg4
{[%clk 0:02:24.4]} 13. Kb1 {[%clk 0:02:46.5]} 13... f5 {[%clk 0:02:17.5]} 14.
exf5 {[%clk 0:02:34.8]} 14... Nxf5 {[%clk 0:02:09.8]} 15. Nd5 {[%clk 0:02:31.2]}
15... Nf6 {[%clk 0:01:58]} 16. Nf3 {[%clk 0:02:17.5]} 16... Nd7 {[%clk 0:01:39]}
17. Qe2 {[%clk 0:02:00.3]} 17... Re8 {[%clk 0:01:28.2]} 18. Rhe1 {[%clk
0:01:42.6]} 18... Bg7 {[%clk 0:01:24.6]} 19. Qc4 {[%clk 0:01:36.6]} 19... b5
{[%clk 0:01:07.3]} 20. Qxb5 {[%clk 0:01:19.3]} 20... Qc8 {[%clk 0:00:58.8]} 21.
fxe5 {[%clk 0:01:11.5]} 21... Nxe5 {[%clk 0:00:55.9]} 22. Nxe5 {[%clk
0:01:08.4]} 22... dxe5 {[%clk 0:00:56.1]} 23. g4 {[%clk 0:00:44.6]} 23... Nh4
{[%clk 0:00:30.2]} 24. g5 {[%clk 0:00:37.1]} 24... Qf5 {[%clk 0:00:27.4]} 25.
Nc7 {[%clk 0:00:33.4]} 25... e4 {[%clk 0:00:15.3]} 26. Qc4+ {[%clk 0:00:30.4]}
26... Kh8 {[%clk 0:00:15.2]} 27. Bxg7+ {[%clk 0:00:30.1]} 27... Kxg7 {[%clk
0:00:13.5]} 28. Nxa8 {[%clk 0:00:27.9]} 1-0

[Event "Early-Titled-Tuesday-Blitz-May-14-2024"]
[Site "Chess.com"]
[Date "2024.05.14"]
[Round "9"]
[White "Fjal"]
[Black "ural58"]
[Result "1-0"]
[WhiteElo "2346"]
[BlackElo "2458"]
[TimeControl "180+1"]
[EndTime "9:46:16 PDT"]
[Termination "Fjal won by checkmate"]

1. Nf3 {[%clk 0:02:51.1]} 1... d5 {[%clk 0:02:58.7]} 2. g3 {[%clk 0:02:51.5]}
2... Nc6 {[%clk 0:02:58.6]} 3. Bg2 {[%clk 0:02:52]} 3... e5 {[%clk 0:02:58.3]}
4. d3 {[%clk 0:02:52.6]} 4... Bg4 {[%clk 0:02:56]} 5. O-O {[%clk 0:02:50.7]}
5... Qd7 {[%clk 0:02:56]} 6. c4 {[%clk 0:02:51.2]} 6... Nf6 {[%clk 0:02:51.3]}
7. cxd5 {[%clk 0:02:49.8]} 7... Nxd5 {[%clk 0:02:51.3]} 8. Nc3 {[%clk
0:02:50.5]} 8... Nxc3 {[%clk 0:02:49.2]} 9. bxc3 {[%clk 0:02:51.4]} 9... Bd6
{[%clk 0:02:48.9]} 10. Rb1 {[%clk 0:02:51]} 10... Nd8 {[%clk 0:02:47.4]} 11. d4
{[%clk 0:02:39.2]} 11... e4 {[%clk 0:02:40.5]} 12. Ng5 {[%clk 0:02:37.7]} 12...
f5 {[%clk 0:02:38.9]} 13. f3 {[%clk 0:02:37.7]} 13... Bh5 {[%clk 0:02:30.7]} 14.
fxe4 {[%clk 0:02:11.1]} 14... h6 {[%clk 0:02:28.6]} 15. Nh3 {[%clk 0:01:58.6]}
15... O-O {[%clk 0:02:21.8]} 16. e5 {[%clk 0:01:53.1]} 16... Be7 {[%clk
0:02:21.3]} 17. Nf4 {[%clk 0:01:52.8]} 17... Bf7 {[%clk 0:02:18.4]} 18. d5
{[%clk 0:01:50]} 18... Bc5+ {[%clk 0:02:18]} 19. Kh1 {[%clk 0:01:49.7]} 19...
Qe7 {[%clk 0:01:36.9]} 20. Nd3 {[%clk 0:01:33.6]} 20... Bb6 {[%clk 0:01:32.9]}
21. Rxf5 {[%clk 0:01:20.7]} 21... c6 {[%clk 0:01:19.1]} 22. e4 {[%clk
0:01:05.3]} 22... Bg6 {[%clk 0:01:10.6]} 23. Rxf8+ {[%clk 0:01:06.2]} 23... Qxf8
{[%clk 0:01:11]} 24. Qg4 {[%clk 0:00:55.7]} 24... Bh7 {[%clk 0:01:05.6]} 25.
Bxh6 {[%clk 0:00:39.5]} 25... Nf7 {[%clk 0:01:04.6]} 26. Bf4 {[%clk 0:00:38.9]}
26... cxd5 {[%clk 0:00:58.3]} 27. exd5 {[%clk 0:00:37.7]} 27... Bxd3 {[%clk
0:00:57]} 28. Rd1 {[%clk 0:00:31.6]} 28... Bc2 {[%clk 0:00:55.3]} 29. Rc1 {[%clk
0:00:28.9]} 29... Bh7 {[%clk 0:00:53.9]} 30. e6 {[%clk 0:00:19.5]} 30... Nd6
{[%clk 0:00:51.9]} 31. Rf1 {[%clk 0:00:19.7]} 31... Qe7 {[%clk 0:00:51.5]} 32.
Bg5 {[%clk 0:00:20.4]} 32... Qc7 {[%clk 0:00:48.5]} 33. e7 {[%clk 0:00:18.7]}
33... Re8 {[%clk 0:00:46.2]} 34. Qe6+ {[%clk 0:00:18.7]} 34... Kh8 {[%clk
0:00:45.5]} 35. Rf8+ {[%clk 0:00:19.4]} 35... Bg8 {[%clk 0:00:45.2]} 36. Qxg8#
{[%clk 0:00:18.9]} 1-0

[Event "Early-Titled-Tuesday-Blitz-May-14-2024"]
[Site "Chess.com"]
[Date "2024.05.14"]
[Round "9"]
[White "EvgenyBurmakin"]
[Black "tarno17"]
[Result "0-1"]
[WhiteElo "2306"]
[BlackElo "2188"]
[TimeControl "180+1"]
[EndTime "9:46:18 PDT"]
[Termination "tarno17 won on time"]

1. e4 {[%clk 0:02:29.6]} 1... c5 {[%clk 0:02:59.4]} 2. Nc3 {[%clk 0:02:25.8]}
2... e6 {[%clk 0:02:55.9]} 3. Nf3 {[%clk 0:02:24.5]} 3... a6 {[%clk 0:02:56.3]}
4. d4 {[%clk 0:02:24.6]} 4... cxd4 {[%clk 0:02:56.9]} 5. Nxd4 {[%clk 0:02:24.9]}
5... Qc7 {[%clk 0:02:57.7]} 6. a3 {[%clk 0:02:24.2]} 6... b5 {[%clk 0:02:58.2]}
7. f4 {[%clk 0:02:18.8]} 7... Nc6 {[%clk 0:02:44.2]} 8. Nxc6 {[%clk 0:01:57.9]}
8... dxc6 {[%clk 0:02:42.5]} 9. Be3 {[%clk 0:01:54.9]} 9... Nf6 {[%clk
0:02:28.2]} 10. g4 {[%clk 0:01:47.7]} 10... h5 {[%clk 0:02:12.1]} 11. gxh5
{[%clk 0:01:26.2]} 11... Nxh5 {[%clk 0:02:09.6]} 12. Qf3 {[%clk 0:01:25]} 12...
b4 {[%clk 0:01:46.1]} 13. axb4 {[%clk 0:01:19.7]} 13... Bxb4 {[%clk 0:01:45.1]}
14. Bd3 {[%clk 0:01:02.4]} 14... Bb7 {[%clk 0:01:20.8]} 15. Rg1 {[%clk
0:00:56.1]} 15... c5 {[%clk 0:01:10.7]} 16. Rg5 {[%clk 0:00:38.4]} 16... g6
{[%clk 0:01:01.7]} 17. Re5 {[%clk 0:00:20.6]} 17... c4 {[%clk 0:00:53]} 18. Be2
{[%clk 0:00:18.1]} 18... Bd6 {[%clk 0:00:53.2]} 19. Rea5 {[%clk 0:00:11.4]}
19... Nxf4 {[%clk 0:00:47.4]} 20. Bg1 {[%clk 0:00:06.4]} 20... Nh3 {[%clk
0:00:44.8]} 21. Qg2 {[%clk 0:00:04.6]} 21... Nxg1 {[%clk 0:00:44.1]} 22. Qxg1
{[%clk 0:00:04.5]} 22... Bxh2 {[%clk 0:00:44.2]} 23. Qd4 {[%clk 0:00:03.7]}
23... Bg3+ {[%clk 0:00:44.5]} 24. Kf1 {[%clk 0:00:02.6]} 24... Qf4+ {[%clk
0:00:40.7]} 25. Kg1 {[%clk 0:00:00.5]} 25... Bh2+ {[%clk 0:00:33.9]} 0-1

[Event "Early-Titled-Tuesday-Blitz-May-14-2024"]
[Site "Chess.com"]
[Date "2024.05.14"]
[Round "9"]
[White "Felix-Rose"]
[Black "jaramsdal"]
[Result "1-0"]
[WhiteElo "2269"]
[BlackElo "2372"]
[TimeControl "180+1"]
[EndTime "9:46:20 PDT"]
[Termination "Felix-Rose won by resignation"]

1. e4 {[%clk 0:03:00.9]} 1... c5 {[%clk 0:02:55.2]} 2. Nf3 {[%clk 0:03:00.3]}
2... d6 {[%clk 0:02:54.7]} 3. d4 {[%clk 0:03:00]} 3... cxd4 {[%clk 0:02:55.6]}
4. Nxd4 {[%clk 0:03:00.6]} 4... Nf6 {[%clk 0:02:56.3]} 5. Nc3 {[%clk 0:03:00.7]}
5... g6 {[%clk 0:02:57]} 6. Be3 {[%clk 0:03:00.2]} 6... Bg7 {[%clk 0:02:52.4]}
7. f3 {[%clk 0:03:00]} 7... O-O {[%clk 0:02:52.9]} 8. Qd2 {[%clk 0:03:00.6]}
8... Nc6 {[%clk 0:02:52.7]} 9. O-O-O {[%clk 0:03:00.9]} 9... d5 {[%clk
0:02:52.6]} 10. Nxc6 {[%clk 0:03:00.7]} 10... bxc6 {[%clk 0:02:52.4]} 11. exd5
{[%clk 0:03:01.2]} 11... Nxd5 {[%clk 0:02:48.4]} 12. Bd4 {[%clk 0:03:01.1]}
12... e5 {[%clk 0:02:43.9]} 13. Bc5 {[%clk 0:03:01]} 13... Re8 {[%clk
0:02:44.8]} 14. Ne4 {[%clk 0:03:01]} 14... f5 {[%clk 0:02:10.9]} 15. Nd6 {[%clk
0:02:59.6]} 15... Re6 {[%clk 0:02:11.6]} 16. Nxc8 {[%clk 0:02:57.5]} 16... Qxc8
{[%clk 0:02:09.1]} 17. Bc4 {[%clk 0:02:52]} 17... Qb7 {[%clk 0:02:01.8]} 18.
Bxd5 {[%clk 0:02:45.4]} 18... cxd5 {[%clk 0:02:02.7]} 19. Qxd5 {[%clk
0:02:44.9]} 19... Qxd5 {[%clk 0:02:03.6]} 20. Rxd5 {[%clk 0:02:44.4]} 20... e4
{[%clk 0:02:04.5]} 21. fxe4 {[%clk 0:02:31.2]} 21... Rxe4 {[%clk 0:02:01.7]} 22.
Rhd1 {[%clk 0:02:24.6]} 22... Re2 {[%clk 0:01:58]} 23. Rd8+ {[%clk 0:01:57.5]}
23... Rxd8 {[%clk 0:01:25.3]} 24. Rxd8+ {[%clk 0:01:58.4]} 24... Kf7 {[%clk
0:01:25.9]} 25. Rd7+ {[%clk 0:01:55.3]} 25... Kg8 {[%clk 0:01:26.5]} 26. b4
{[%clk 0:01:48.6]} 26... a6 {[%clk 0:01:25.1]} 27. Rd8+ {[%clk 0:01:38.6]} 27...
Kf7 {[%clk 0:01:25.1]} 28. Rd7+ {[%clk 0:01:38.2]} 28... Kg8 {[%clk 0:01:25.8]}
29. Ra7 {[%clk 0:01:34]} 29... Bc3 {[%clk 0:01:21.3]} 30. Rd7 {[%clk 0:00:53.2]}
30... Rxg2 {[%clk 0:01:21]} 31. a4 {[%clk 0:00:52.3]} 31... f4 {[%clk 0:01:16]}
32. Kb1 {[%clk 0:00:50.8]} 32... f3 {[%clk 0:01:16]} 33. Rd8+ {[%clk 0:00:50.8]}
33... Kf7 {[%clk 0:01:13.9]} 34. Rf8+ {[%clk 0:00:51]} 34... Ke6 {[%clk
0:01:07.9]} 35. Rxf3 {[%clk 0:00:51.9]} 35... Be5 {[%clk 0:01:03.8]} 36. h3
{[%clk 0:00:52.1]} 36... Rg3 {[%clk 0:01:01.6]} 37. Rxg3 {[%clk 0:00:52.2]}
37... Bxg3 {[%clk 0:01:02.5]} 38. c4 {[%clk 0:00:51.4]} 38... Bd6 {[%clk
0:00:59.8]} 39. Bxd6 {[%clk 0:00:48.3]} 39... Kxd6 {[%clk 0:01:00.7]} 40. b5
{[%clk 0:00:48.2]} 40... axb5 {[%clk 0:00:47.3]} 41. axb5 {[%clk 0:00:47.6]}
41... g5 {[%clk 0:00:46.2]} 42. Kc2 {[%clk 0:00:47.9]} 42... h5 {[%clk
0:00:46.7]} 43. Kd3 {[%clk 0:00:48.4]} 43... Kc5 {[%clk 0:00:38.3]} 44. Ke4
{[%clk 0:00:48.2]} 44... Kb6 {[%clk 0:00:38.8]} 45. Kf5 {[%clk 0:00:47.3]} 45...
g4 {[%clk 0:00:39.1]} 46. hxg4 {[%clk 0:00:46.7]} 46... h4 {[%clk 0:00:39.5]}
47. Kf4 {[%clk 0:00:46.9]} 47... Kc5 {[%clk 0:00:39.5]} 48. g5 {[%clk 0:00:47]}
48... Kxc4 {[%clk 0:00:40.4]} 49. b6 {[%clk 0:00:46.7]} 49... h3 {[%clk
0:00:41.3]} 50. Kg3 {[%clk 0:00:46.5]} 50... h2 {[%clk 0:00:42.2]} 51. Kxh2
{[%clk 0:00:46.9]} 51... Kc5 {[%clk 0:00:43.1]} 52. b7 {[%clk 0:00:46.7]} 1-0

[Event "Early-Titled-Tuesday-Blitz-May-14-2024"]
[Site "Chess.com"]
[Date "2024.05.14"]
[Round "9"]
[White "chess_sharparchitect"]
[Black "guillembaches"]
[Result "1-0"]
[WhiteElo "2347"]
[BlackElo "2545"]
[TimeControl "180+1"]
[EndTime "9:46:21 PDT"]
[Termination "chess_sharparchitect won on time"]

1. c4 {[%clk 0:03:00.9]} 1... e5 {[%clk 0:02:59.6]} 2. Nc3 {[%clk 0:03:00.3]}
2... Nf6 {[%clk 0:03:00.2]} 3. Nf3 {[%clk 0:03:00.4]} 3... Nc6 {[%clk 0:03:00]}
4. e3 {[%clk 0:03:00.3]} 4... d5 {[%clk 0:02:58.1]} 5. cxd5 {[%clk 0:02:59]}
5... Nxd5 {[%clk 0:02:58.7]} 6. Bb5 {[%clk 0:02:59.5]} 6... Nxc3 {[%clk
0:02:59]} 7. bxc3 {[%clk 0:02:59.6]} 7... Bd6 {[%clk 0:02:59.6]} 8. d4 {[%clk
0:02:50.5]} 8... exd4 {[%clk 0:02:59.3]} 9. cxd4 {[%clk 0:02:43.4]} 9... O-O
{[%clk 0:02:59.1]} 10. O-O {[%clk 0:02:42.8]} 10... Bg4 {[%clk 0:02:58.6]} 11.
h3 {[%clk 0:02:42.3]} 11... Bh5 {[%clk 0:02:58.3]} 12. Be2 {[%clk 0:02:36.1]}
12... Re8 {[%clk 0:02:53]} 13. Rb1 {[%clk 0:02:33.1]} 13... Rb8 {[%clk
0:02:48.7]} 14. Bb2 {[%clk 0:02:25.1]} 14... Nb4 {[%clk 0:02:45.2]} 15. a3
{[%clk 0:02:21.4]} 15... Nd5 {[%clk 0:02:44.8]} 16. Qb3 {[%clk 0:02:15.5]} 16...
c6 {[%clk 0:02:37]} 17. Rbc1 {[%clk 0:02:08.2]} 17... Bc7 {[%clk 0:02:29]} 18.
Qc2 {[%clk 0:01:50.8]} 18... Qd6 {[%clk 0:02:20.5]} 19. Ne5 {[%clk 0:01:45.8]}
19... Bg6 {[%clk 0:02:08.2]} 20. Bd3 {[%clk 0:01:39.5]} 20... Bxd3 {[%clk
0:01:51.3]} 21. Qxd3 {[%clk 0:01:37.9]} 21... Rbd8 {[%clk 0:01:46.1]} 22. Nf3
{[%clk 0:01:29.4]} 22... Qh6 {[%clk 0:01:35.6]} 23. Ne5 {[%clk 0:01:15.3]} 23...
Nf6 {[%clk 0:01:03.9]} 24. Qf5 {[%clk 0:01:11.1]} 24... Bxe5 {[%clk 0:00:54.7]}
25. dxe5 {[%clk 0:01:09]} 25... Nd5 {[%clk 0:00:54.8]} 26. Rfd1 {[%clk
0:00:58.3]} 26... Qe6 {[%clk 0:00:54.6]} 27. Qg5 {[%clk 0:00:55.6]} 27... Nb6
{[%clk 0:00:50.3]} 28. Rxd8 {[%clk 0:00:54.1]} 28... f6 {[%clk 0:00:33.5]} 29.
exf6 {[%clk 0:00:47.1]} 29... g6 {[%clk 0:00:30.5]} 30. Rxe8+ {[%clk 0:00:46.2]}
30... Qxe8 {[%clk 0:00:30.1]} 31. f7+ {[%clk 0:00:42.2]} 1-0

[Event "Early-Titled-Tuesday-Blitz-May-14-2024"]
[Site "Chess.com"]
[Date "2024.05.14"]
[Round "9"]
[White "th3d4rkness"]
[Black "GMthekingindian"]
[Result "0-1"]
[WhiteElo "2159"]
[BlackElo "2296"]
[TimeControl "180+1"]
[EndTime "9:46:24 PDT"]
[Termination "GMthekingindian won on time"]

1. e4 {[%clk 0:03:00.9]} 1... c5 {[%clk 0:03:00]} 2. Nc3 {[%clk 0:03:00.4]} 2...
e6 {[%clk 0:02:59.8]} 3. d4 {[%clk 0:02:59.3]} 3... cxd4 {[%clk 0:02:59.5]} 4.
Qxd4 {[%clk 0:02:59.9]} 4... Nc6 {[%clk 0:02:59.2]} 5. Qd3 {[%clk 0:03:00]} 5...
Nf6 {[%clk 0:02:58.9]} 6. Bf4 {[%clk 0:02:59.7]} 6... Bb4 {[%clk 0:02:53]} 7.
Ne2 {[%clk 0:02:56.5]} 7... a6 {[%clk 0:02:47.3]} 8. O-O-O {[%clk 0:02:54.6]}
8... Qa5 {[%clk 0:02:33.6]} 9. Kb1 {[%clk 0:02:44.8]} 9... O-O {[%clk
0:02:27.8]} 10. Bd6 {[%clk 0:02:26.4]} 10... Ne5 {[%clk 0:01:59.7]} 11. Qd4
{[%clk 0:01:52]} 11... Bxd6 {[%clk 0:01:57.7]} 12. Qxd6 {[%clk 0:01:50.2]} 12...
Nc4 {[%clk 0:01:41.1]} 13. Qd4 {[%clk 0:01:27.5]} 13... b5 {[%clk 0:01:15.6]}
14. Nc1 {[%clk 0:01:19.1]} 14... Bb7 {[%clk 0:01:08.5]} 15. f3 {[%clk
0:01:03.2]} 15... Rac8 {[%clk 0:01:04.2]} 16. Nb3 {[%clk 0:01:00.6]} 16... Qc7
{[%clk 0:00:50.4]} 17. g4 {[%clk 0:00:55.5]} 17... d5 {[%clk 0:00:28.8]} 18. g5
{[%clk 0:00:47.7]} 18... e5 {[%clk 0:00:29]} 19. Qf2 {[%clk 0:00:35]} 19... Nxb2
{[%clk 0:00:16.1]} 20. gxf6 {[%clk 0:00:17.9]} 20... Qxc3 {[%clk 0:00:14.5]} 0-1